bitfinex/quotes_ETHUSD_20250518
["timestamp","ask_amount","ask_price","bid_price","bid_amount"]
[1747555128801,82.6668196,2510.6,2510.5,91.95870769]
[1747555128949,97.5178196,2510.6,2510.5,91.95870769]
[1747555129144,88.3277036,2510.6,2510.5,91.95870769]
[1747555129377,80.9017846,2510.6,2510.5,91.95870769]
[1747555129679,61.3077846,2510.6,2510.5,91.95870769]
[1747555129880,57.5229366,2510.6,2510.5,91.559889]
[1747555130051,50.4149366,2510.6,2510.5,91.559889]
[1747555130266,66.0699366,2510.6,2510.5,91.559889]
[1747555131913,50.6709366,2510.6,2510.5,91.559889]
[1747555132117,66.0649366,2510.6,2510.5,91.559889]
[1747555133995,40.9918788,2510.6,2510.5,91.559889]
[1747555134203,56.6418788,2510.6,2510.5,91.559889]
[1747555134499,45.9094188,2510.6,2510.5,91.559889]
[1747555134691,53.5594188,2510.6,2510.5,91.559889]
[1747555135198,53.2268076,2510.6,2510.5,91.559889]
[1747555135404,54.6239064,2510.6,2510.5,91.559889]
[1747555136179,55.4407064,2510.6,2510.5,91.559889]
[1747555136718,53.2268076,2510.6,2510.5,91.559889]
[1747555136882,37.8328076,2510.6,2510.5,91.559889]
[1747555137206,53.1328076,2510.6,2510.5,91.559889]
[1747555138124,35.4841116,2510.6,2510.5,91.559889]
[1747555138289,50.7841116,2510.6,2510.5,91.559889]
[1747555140524,50.7831116,2510.6,2510.5,91.559889]
[1747555143412,50.7821116,2510.6,2510.5,91.559889]
[1747555143574,35.4841116,2510.6,2510.5,91.559889]
[1747555143777,50.7821116,2510.6,2510.5,91.559889]
[1747555144597,35.4841116,2510.6,2510.5,91.559889]
[1747555144800,50.7821116,2510.6,2510.5,91.559889]
[1747555145017,35.4841116,2510.6,2510.5,91.559889]
[1747555145192,27.4841116,2510.6,2510.5,92.371889]
[1747555145387,42.2321116,2510.6,2510.5,92.371889]
[1747555145587,24.5331116,2510.6,2510.5,96.44761601]
[1747555145788,24.5331116,2510.6,2510.5,97.84471481]
[1747555146003,32.1811116,2510.6,2510.5,97.84471481]
[1747555146313,40.1811116,2510.6,2510.5,97.84471481]
[1747555146504,40.1811116,2510.6,2510.5,93.7689878]
[1747555146704,40.1811116,2510.6,2510.5,92.371889]
[1747555147512,24.5331116,2510.6,2510.5,92.371889]
[1747555147691,32.1811116,2510.6,2510.5,92.371889]
[1747555147898,12.901,2510.6,2510.5,92.371889]
[1747555148424,28.198,2510.6,2510.5,96.44761601]
[1747555149029,28.198,2510.6,2510.5,97.84471481]
[1747555149030,28.197,2510.6,2510.5,97.84471481]
[1747555149418,20.549,2510.6,2510.5,97.84471481]
[1747555150197,24.5321116,2510.6,2510.5,92.371889]
[1747555150606,20.549,2510.6,2510.5,92.371889]
[1747555150802,20.549,2510.6,2510.5,93.7689878]
[1747555152047,24.5321116,2510.6,2510.5,93.7689878]
[1747555152409,24.5321116,2510.6,2510.5,92.371889]
[1747555153848,24.5321116,2510.6,2510.5,93.7689878]
[1747555154005,32.5321116,2510.6,2510.5,92.371889]
[1747555154205,33.0821116,2510.6,2510.5,92.371889]
[1747555155608,33.0821116,2510.6,2510.5,91.559889]
[1747555156744,40.7271116,2510.6,2510.5,92.381889]
[1747555157828,40.7271116,2510.6,2510.5,91.559889]
[1747555159050,50.7771116,2510.6,2510.5,91.559889]
[1747555161664,52.1742104,2510.6,2510.5,91.559889]
[1747555162567,50.7771116,2510.6,2510.5,91.559889]
[1747555164242,35.4841116,2510.6,2510.5,91.559889]
[1747555164643,50.7781116,2510.6,2510.5,91.559889]
[1747555167871,52.1752104,2510.6,2510.5,91.559889]
[1747555169652,52.1752104,2510.6,2510.5,89.06954423]
[1747555169653,57.6354304,2510.6,2510.5,89.06954423]
[1747555171890,52.1752104,2510.6,2510.5,89.06954423]
[1747555172075,66.6385004,2510.6,2510.5,89.06954423]
[1747555172780,71.6247004,2510.6,2510.5,85.00556456]
[1747555172981,71.6247004,2510.6,2510.5,83.14390674]
[1747555173160,71.6247004,2510.6,2510.5,82.59670674]
[1747555173507,71.6247004,2510.6,2510.5,78.25870674]
[1747555173657,71.6247004,2510.6,2510.5,76.26699228]
[1747555173858,71.6247004,2510.6,2510.5,74.27516674]
[1747555174076,71.6247004,2510.6,2510.5,73.76266675]
[1747555174583,71.6247004,2510.6,2510.5,72.70206675]
[1747555174784,71.6247004,2510.6,2510.5,53.10805809]
[1747555174958,71.6247004,2510.6,2510.5,51.11623255]
[1747555175159,71.6247004,2510.6,2510.5,49.12440701]
[1747555175364,71.6247004,2510.6,2510.5,45.30958147]
[1747555175566,71.6247004,2510.6,2510.5,43.31775593]
[1747555175765,71.6247004,2510.6,2510.5,39.33410485]
[1747555175980,71.6247004,2510.6,2510.5,37.34227931]
[1747555176179,71.6247004,2510.6,2510.5,35.35045377]
[1747555176382,71.6247004,2510.6,2510.5,31.36680269]
[1747555176588,71.6247004,2510.6,2510.5,29.37497715]
[1747555176900,71.6247004,2510.6,2510.5,25.39132607]
[1747555177086,71.6247004,2510.6,2510.5,23.39950053]
[1747555177396,71.6247004,2510.6,2510.5,19.41584945]
[1747555177600,71.6247004,2510.6,2510.5,15.43219837]
[1747555177798,71.6247004,2510.6,2510.5,2.66579837]
[1747555177978,3.98469875,2509.6,2509.5,0.7969]
[1747555178164,32.73769875,2509.6,2509.5,0.7969]
[1747555178497,40.73769875,2509.6,2509.5,0.7969]
[1747555181084,3.98596735,2508.9,2508.7,0.7609]
[1747555181284,11.63396938,2508.8,2508.7,0.21579988]
[1747555181502,11.63396938,2508.8,2508.7,0.97669988]
[1747555182079,7.648,2508.8,2508.7,0.97669988]
[1747555182310,11.63396938,2508.8,2508.7,0.97669988]
[1747555182505,7.648,2508.8,2508.7,0.97669988]
[1747555183014,11.63396938,2508.8,2508.7,0.97669988]
[1747555183578,11.63396938,2508.8,2508.7,0.7609]
[1747555183786,11.93169467,2508.8,2508.7,0.7609]
[1747555186113,7.94572529,2508.8,2508.7,0.7609]
[1747555186413,11.93169467,2508.8,2508.7,0.7609]
[1747555187299,11.93169467,2508.8,2508.7,2.1579988]
[1747555187501,15.59372529,2508.8,2508.7,2.1579988]
[1747555187700,15.59472529,2508.8,2508.7,2.37379868]
[1747555190212,15.59472529,2508.8,2508.7,0.7609]
[1747555190420,19.58069467,2508.8,2508.7,0.7609]
[1747555191317,15.59472529,2508.8,2508.7,0.7609]
[1747555191921,19.58069467,2508.8,2508.7,0.7609]
[1747555193020,15.59472529,2508.8,2508.7,0.7609]
[1747555193326,15.59472529,2508.8,2508.7,0.97669988]
[1747555194631,0.29772529,2508.8,2508.7,0.97669988]
[1747555194796,7.649,2508.9,2508.7,0.97669988]
[1747555195128,7.649,2508.9,2508.8,2.2025988]
[1747555196106,3.98520533,2509.3,2509.0,0.8055]
[1747555196437,15.297,2509.2,2509.1,0.8055]
[1747555196726,15.59078478,2509.2,2509.1,0.8055]
[1747555197436,15.58978478,2509.2,2509.1,0.8055]
[1747555197734,15.58978478,2509.2,2509.1,2.2025988]
[1747555199756,15.58778478,2509.2,2509.1,2.85151452]
[1747555199925,0.55,2509.9,2509.1,2.85151452]
[1747555199926,4.18200844,2510.1,2509.2,0.8001]
[1747555200140,4.18200844,2510.1,2509.6,1.3970988]
[1747555200141,3.98422247,2509.9,2509.6,1.3970988]
[1747555200425,3.98422247,2509.9,2509.7,0.8001]
[1747555200426,11.98447614,2509.8,2509.7,0.8001]
[1747555200685,3.98447614,2509.8,2509.7,0.8001]
[1747555200844,11.63147614,2509.8,2509.7,0.8001]
[1747555201655,11.93664232,2509.8,2509.7,0.8001]
[1747555205022,11.63047614,2509.8,2509.7,0.8001]
[1747555205227,7.647,2510.0,2509.7,1.01981988]
[1747555205442,7.647,2510.0,2509.8,1.3970988]
[1747555205647,12.912,2510.1,2509.9,0.7539]
[1747555205972,12.91,2510.9,2510.1,0.7539]
[1747555206124,3.98304556,2510.7,2510.6,2.1509988]
[1747555206463,11.62882571,2510.8,2510.6,2.1509988]
[1747555206660,19.28682571,2510.8,2510.6,2.1509988]
[1747555207078,11.62882571,2510.8,2510.6,2.1509988]
[1747555207233,7.646,2510.8,2510.6,2.1509988]
[1747555207440,7.646,2510.8,2510.6,2.76443049]
[1747555207842,7.646,2510.8,2510.7,3.98295296]
[1747555208196,7.646,2510.8,2510.7,0.7539]
[1747555208966,12.91,2510.9,2510.8,4.73669432]
[1747555209167,12.91,2510.9,2510.8,6.13379312]
[1747555209335,7.645,2511.0,2510.9,4.7365357]
[1747555209537,0.6667,2511.3,2511.2,4.73605992]
[1747555209734,0.6667,2511.3,2511.2,6.13315872]
[1747555209958,0.6667,2511.3,2511.2,6.7945393]
[1747555210636,0.6667,2511.3,2511.2,2.81237938]
[1747555210832,0.6667,2511.3,2511.2,7.47401547]
[1747555211239,0.6667,2511.3,2511.2,2.09475675]
[1747555211474,0.6667,2511.3,2511.2,5.3974405]
[1747555212943,0.6667,2511.3,2511.2,13.3974405]
[1747555214481,0.6667,2511.3,2511.2,16.23792795]
[1747555216711,0.0008,2511.8,2511.2,16.23792795]
[1747555216712,0.0008,2511.8,2511.7,4.7352672]
[1747555217019,0.0008,2511.8,2511.7,8.04928137]
[1747555217520,0.0008,2511.8,2511.7,4.06791417]
[1747555217813,3.98200869,2511.8,2511.7,0.7539]
[1747555217966,0.0008,2511.8,2511.7,0.7539]
[1747555220996,0.0008,2511.8,2511.7,4.7352672]
[1747555221775,0.0008,2511.8,2511.7,4.77951015]
[1747555221975,0.0008,2511.8,2511.7,6.70366047]
[1747555222176,0.0008,2511.8,2511.7,14.70366047]
[1747555222379,0.0008,2511.8,2511.7,21.31366047]
[1747555222874,0.00119323,2512.6,2511.8,12.53120869]
[1747555223102,0.00119323,2512.6,2512.5,7.81768695]
[1747555223293,0.00119323,2512.6,2512.5,8.99747947]
[1747555225074,0.00119323,2512.6,2512.5,5.01737997]
[1747555226207,0.00119323,2512.6,2512.5,0.9971]
[1747555227080,0.00119323,2512.6,2512.3,0.9971]
[1747555227475,3.98114505,2512.6,2512.3,0.9971]
[1747555227676,3.98119318,2512.6,2512.3,0.9971]
[1747555227976,0.00119323,2512.6,2512.3,0.9971]
[1747555228508,3.98021187,2512.5,2512.3,0.9971]
[1747555228683,3.98118363,2512.6,2512.3,0.9971]
[1747555228884,0.00119323,2512.6,2512.3,0.9971]
[1747555229098,3.98019148,2512.5,2512.3,0.9971]
[1747555229396,3.98026107,2512.4,2512.2,0.1007692]
[1747555229774,3.98041635,2512.3,2512.2,0.1007692]
[1747555229970,7.63719323,2512.6,2512.2,0.1007692]
[1747555229971,11.61719489,2512.6,2512.2,0.1007692]
[1747555230206,7.63719323,2512.6,2512.2,0.1007692]
[1747555230411,0.00119323,2512.6,2512.2,0.1007692]
[1747555230612,0.00119323,2512.6,2512.2,0.90121948]
[1747555230916,0.00119323,2512.6,2512.5,3.9800995]
[1747555231117,0.00119323,2512.6,2512.5,5.0624995]
[1747555231685,0.00119323,2512.6,2512.5,1.0824]
[1747555233319,0.00119323,2512.6,2512.5,5.0624995]
[1747555233541,0.00119323,2512.6,2512.5,6.25082873]
[1747555233889,0.00119323,2512.6,2512.5,6.62559187]
[1747555235127,0.00119323,2512.6,2512.5,7.0997231]
[1747555235423,0.00119323,2512.6,2512.5,3.1196236]
[1747555237557,0.00119323,2512.6,2512.5,0.84889437]
[1747555237833,3.98113432,2512.6,2512.5,0.84889437]
[1747555237992,0.00119323,2512.6,2512.5,1.93129437]
[1747555238424,3.98113432,2512.6,2512.5,0.84889437]
[1747555240398,5.06733432,2512.6,2512.5,0.84889437]
[1747555240641,5.06733432,2512.6,2512.5,0.37476314]
[1747555241197,20.40033432,2512.6,2512.5,0.37476314]
[1747555243631,20.95033432,2512.6,2512.5,0.37476314]
[1747555243834,28.95033432,2512.6,2512.5,0.37476314]
[1747555244645,3.98041635,2512.3,2512.2,0.57490043]
[1747555244827,5.03131635,2512.3,2512.2,0.57490043]
[1747555245205,5.03131635,2512.3,2512.2,0.47413123]
[1747555246008,5.03131635,2512.3,2512.2,0.37751734]
[1747555248753,3.98094731,2512.0,2511.7,0.47413123]
[1747555249049,11.61707013,2511.9,2511.7,1.08905807]
[1747555249344,7.636,2511.9,2511.7,0.47413123]
[1747555249541,3.98120869,2511.8,2511.7,0.47413123]
[1747555250755,3.98120869,2511.8,2511.7,0.85162392]
[1747555251313,5.07620869,2511.8,2511.7,0.85162392]
[1747555252173,3.98179249,2511.5,2511.2,0.47413123]
[1747555252457,1.095,2511.8,2511.2,0.47413123]
[1747555252458,11.61886368,2511.4,2511.2,1.29921185]
[1747555252750,7.637,2511.4,2511.2,1.29921185]
[1747555252921,11.61885069,2511.4,2511.2,1.29921185]
[1747555253255,11.61885069,2511.4,2511.2,0.47413123]
[1747555253480,11.61885069,2511.4,2511.3,0.37722937]
[1747555253826,12.63705069,2511.4,2511.3,0.37722937]
[1747555254029,3.98185069,2511.4,2511.3,0.37722937]
[1747555254269,19.30985069,2511.4,2511.3,0.37722937]
[1747555254635,15.328,2511.4,2511.3,0.37722937]
[1747555254830,4.98570555,2511.6,2511.3,0.37722937]
[1747555254831,1.0041,2511.6,2511.3,0.37722937]
[1747555255171,7.637,2511.6,2511.3,1.85318951]
[1747555255369,7.637,2511.6,2511.4,0.37722937]
[1747555255945,7.637,2511.5,2511.4,0.37722937]
[1747555257229,4.98520019,2511.9,2511.4,4.35907216]
[1747555257532,4.98520019,2511.9,2511.4,4.35899113]
[1747555257533,7.638,2511.8,2511.4,4.35899113]
[1747555257734,7.638,2511.8,2511.5,1.26573924]
[1747555258345,7.638,2511.8,2511.5,5.24740496]
[1747555258547,7.638,2511.8,2511.5,1.26573924]
[1747555259566,12.66367236,2511.8,2511.5,1.26573924]
[1747555259873,12.66367236,2511.8,2511.3,1.47596014]
[1747555259874,7.638,2511.8,2511.3,1.47596014]
[1747555260076,7.699,2511.7,2511.3,5.45796111]
[1747555260374,7.699,2511.7,2511.4,3.98177431]
[1747555260582,7.699,2511.7,2511.3,5.45787306]
[1747555260875,11.68039335,2511.7,2511.3,1.47596014]
[1747555261651,11.68039335,2511.7,2511.4,0.37690362]
[1747555262672,3.98160811,2511.6,2511.4,0.37690362]
[1747555262876,3.9816752,2511.6,2511.4,0.37690362]
[1747555263072,3.9816752,2511.6,2511.3,0.9926]
[1747555263073,3.98153239,2511.6,2511.3,0.9926]
[1747555263276,3.98171926,2511.5,2511.3,0.9926]
[1747555263475,3.98160174,2511.6,2511.3,0.9926]
[1747555263974,3.98172007,2511.5,2511.3,0.9926]
[1747555264175,3.98160594,2511.6,2511.3,0.9926]
[1747555266376,3.98214554,2511.3,2511.1,1.021]
[1747555266562,11.68116933,2511.2,2511.0,0.47413123]
[1747555266763,3.9823185,2511.1,2511.0,0.47413123]
[1747555267377,5.6032185,2511.1,2511.0,0.47413123]
[1747555267755,13.6032185,2511.1,2511.0,0.47413123]
[1747555267978,3.98329632,2510.5,2510.2,1.55843123]
[1747555268154,7.699,2510.6,2510.2,1.02837825]
[1747555268510,3.98334992,2510.5,2510.2,0.47413123]
[1747555268647,3.98344967,2510.4,2510.2,0.47413123]
[1747555269090,3.98335256,2510.5,2510.2,0.47413123]
[1747555269396,3.98358761,2510.3,2510.2,0.47413123]
[1747555269609,1.0709,2510.7,2510.2,0.47413123]
[1747555269883,7.7,2510.8,2510.4,7.90821064]
[1747555270046,7.7,2510.8,2510.5,0.03982778]
[1747555270246,7.7,2510.8,2510.4,7.90817703]
[1747555270481,11.68250527,2511.0,2510.4,7.90817703]
[1747555270697,7.7,2511.0,2510.4,3.92478745]
[1747555270999,13.9679,2511.3,2510.6,1.0843]
[1747555271181,7.7,2510.9,2510.7,2.84048745]
[1747555271896,12.897,2511.3,2510.7,2.84048745]
[1747555272228,7.701,2510.9,2510.7,6.82339957]
[1747555272402,7.701,2510.9,2510.8,0.37759747]
[1747555272597,7.701,2510.9,2510.8,1.20612717]
[1747555275245,12.897,2511.3,2510.8,5.18889959]
[1747555275449,7.701,2511.2,2510.9,1.0369]
[1747555275694,11.68328948,2511.2,2510.9,0.37759747]
[1747555276123,7.701,2511.1,2510.9,0.37759747]
[1747555276468,11.68334648,2511.1,2510.9,0.37759747]
[1747555277104,16.87903187,2511.3,2510.9,0.37759747]
[1747555277292,12.897,2511.3,2511.1,1.0133]
[1747555277492,20.598,2511.3,2511.2,4.36753867]
[1747555277695,20.598,2511.3,2511.2,4.74513614]
[1747555278003,20.598,2511.3,2511.2,0.76297622]
[1747555278172,12.897,2511.3,2511.2,0.76297622]
[1747555278514,12.897,2511.3,2511.2,4.74513614]
[1747555278711,12.9,2512.1,2511.4,3.98180977]
[1747555278885,19.41304718,2512.0,2511.4,3.98180977]
[1747555279082,19.41304718,2512.0,2511.4,4.95583436]
[1747555279294,3.98106663,2511.9,2511.4,4.95583436]
[1747555280004,11.68198604,2512.0,2511.4,4.95583436]
[1747555280202,19.40992539,2512.0,2511.4,0.97402459]
[1747555280395,3.98128983,2511.8,2511.4,0.97402459]
[1747555280582,3.98128983,2511.8,2511.5,0.37746417]
[1747555280787,3.9814596,2511.7,2511.5,0.37746417]
[1747555281097,3.98152572,2511.6,2511.5,0.37746417]
[1747555281273,13.04942572,2511.6,2511.5,0.37746417]
[1747555281811,3.98152572,2511.6,2511.5,0.37746417]
[1747555282412,7.7,2511.6,2511.2,1.0462]
[1747555282713,7.7,2511.6,2511.3,1.0462]
[1747555282879,7.7,2511.6,2511.4,0.50283552]
[1747555284186,7.7,2511.6,2511.3,1.0462]
[1747555284388,7.7,2511.6,2511.3,5.02817788]
[1747555284620,7.7,2511.6,2511.3,1.0462]
[1747555284983,7.7,2511.6,2511.3,5.02817982]
[1747555285322,7.7,2511.6,2511.4,0.37748029]
[1747555286194,7.7,2511.6,2511.4,0.91805663]
[1747555286620,7.7,2511.6,2511.5,0.37748029]
[1747555287391,11.68152572,2511.6,2511.5,0.37748029]
[1747555287592,12.72182572,2511.6,2511.5,0.37748029]
[1747555288126,3.98200135,2511.3,2511.2,6.06]
[1747555288330,3.98200135,2511.3,2511.1,0.47413123]
[1747555288490,3.98215992,2511.2,2511.1,0.47413123]
[1747555289591,3.98201008,2511.3,2511.1,0.47413123]
[1747555289804,3.98215992,2511.2,2511.1,0.47413123]
[1747555290208,3.98215992,2511.2,2510.8,1.0462]
[1747555290209,3.98249268,2511.0,2510.8,1.0462]
[1747555290411,7.738,2511.0,2510.8,1.0462]
[1747555290616,7.738,2511.0,2510.8,5.57928594]
[1747555290825,7.738,2511.0,2510.8,1.59652068]
[1747555291044,7.738,2511.0,2510.8,1.0462]
[1747555291496,1.0403,2511.6,2510.8,1.0462]
[1747555291698,3.98156376,2511.6,2510.9,3.9826357]
[1747555291935,7.738,2511.5,2511.1,3.9823027]
[1747555292259,7.738,2511.5,2511.3,3.98199398]
[1747555292398,7.738,2511.8,2511.4,3.98182572]
[1747555292597,7.738,2511.8,2511.2,5.42652871]
[1747555292598,7.738,2511.8,2511.3,3.98192589]
[1747555292816,7.738,2511.8,2511.5,1.0462]
[1747555293042,3.9810951,2511.9,2511.5,1.0462]
[1747555293214,11.71923156,2511.8,2511.5,1.0462]
[1747555294038,3.98152572,2511.6,2511.3,1.0462]
[1747555294436,3.98143964,2511.7,2511.3,1.0462]
[1747555294642,7.738,2511.8,2511.4,3.98183042]
[1747555294935,7.738,2511.7,2511.4,3.98183042]
[1747555295298,7.738,2511.7,2511.5,0.37818806]
[1747555296039,3.98089289,2512.0,2511.5,4.35984059]
[1747555296040,3.98096614,2512.0,2511.5,4.35984059]
[1747555296238,7.737,2511.9,2511.6,1.0462]
[1747555296632,3.98089952,2512.0,2511.6,1.0462]
[1747555296867,7.737,2512.0,2511.9,3.9810502]
[1747555297025,7.737,2512.0,2511.9,5.0272502]
[1747555298252,7.737,2512.0,2511.9,1.0462]
[1747555298664,7.737,2512.0,2511.9,1.42406701]
[1747555298862,7.736,2512.3,2512.0,3.98089171]
[1747555299181,0.00119323,2512.6,2512.0,3.98089171]
[1747555299182,7.736,2512.5,2512.1,3.98065713]
[1747555299939,7.736,2512.5,2512.2,3.98047816]
[1747555300164,0.00119323,2512.6,2512.3,4.02016397]
[1747555300363,0.00119323,2512.6,2512.0,2.84048745]
[1747555300364,7.73719323,2512.6,2512.5,3.9800995]
[1747555300582,7.73719323,2512.6,2512.5,5.0543995]
[1747555300782,0.00119323,2512.6,2512.5,5.0543995]
[1747555301140,0.00119323,2512.6,2512.5,5.43226651]
[1747555301475,0.00119323,2512.6,2512.5,0.37786701]
[1747555302251,3.98113432,2512.6,2512.5,0.37786701]
[1747555302671,0.00119323,2512.6,2512.3,3.98032356]
[1747555302876,7.73619323,2512.6,2512.4,5.89794566]
[1747555303059,0.00119323,2512.6,2512.5,3.9800995]
[1747555303703,0.00119323,2512.6,2512.4,5.89797419]
[1747555303877,0.00119323,2512.6,2512.5,3.9800995]
[1747555306303,0.00119323,2512.6,2512.5,4.35651312]
[1747555306473,0.00119323,2512.6,2512.5,6.44601822]
[1747555307179,0.00119323,2512.6,2512.5,7.49221822]
[1747555312003,0.00119323,2512.6,2512.5,21.55221822]
[1747555315110,0.00119323,2512.6,2512.5,29.28521822]
[1747555317314,0.00119323,2512.6,2512.5,29.51254422]
[1747555318333,0.00119323,2512.6,2512.5,30.06254422]
[1747555318720,0.00119323,2512.6,2512.5,22.32954422]
[1747555318921,0.00119323,2512.6,2512.5,21.77954422]
[1747555319228,0.00119323,2512.6,2512.5,37.73867545]
[1747555320210,0.00119323,2512.6,2512.5,37.73667545]
[1747555321407,0.00188019,2513.2,2513.1,3.97914925]
[1747555321610,0.00188019,2513.2,2513.1,5.87400155]
[1747555322317,0.00188019,2513.2,2513.1,1.8948523]
[1747555322519,0.00188019,2513.2,2513.1,5.87400155]
[1747555322931,0.00188019,2513.2,2513.1,2.27126592]
[1747555323136,0.00188019,2513.2,2513.1,6.25041517]
[1747555323333,0.00188019,2513.2,2513.1,0.87873855]
[1747555324610,0.00188019,2513.2,2513.1,4.8578878]
[1747555324810,0.00188019,2513.2,2513.1,0.87873855]
[1747555326354,46.20188019,2513.2,2513.1,0.87873855]
[1747555327917,51.27507111,2513.2,2513.1,0.37641362]
[1747555329155,3.9793076,2513.0,2512.9,0.47413123]
[1747555329355,3.97922675,2513.1,2512.9,0.47413123]
[1747555329933,3.9793076,2513.0,2512.9,0.47413123]
[1747555330167,1.0942,2512.9,2512.7,0.06764962]
[1747555330519,3.97962432,2512.8,2512.7,0.06764962]
[1747555331017,11.72062432,2512.8,2512.7,0.06764962]
[1747555331213,3.97962432,2512.8,2512.7,0.06764962]
[1747555331454,8.8352,2512.9,2512.7,0.06764962]
[1747555331648,8.8352,2512.9,2512.7,0.44568681]
[1747555331649,1.0942,2512.9,2512.7,0.44568681]
[1747555331837,57.92188314,2513.2,2512.7,0.44568681]
[1747555332038,1.0942,2513.1,2512.8,0.37803719]
[1747555332356,53.94288019,2513.2,2512.9,4.3574608]
[1747555332357,46.20188019,2513.2,2512.9,4.3574608]
[1747555332551,46.20188019,2513.2,2512.9,0.37803719]
[1747555332756,46.20188019,2513.2,2513.0,0.37803719]
[1747555333141,46.20188019,2513.2,2513.1,0.37803719]
[1747555334659,46.20188019,2513.2,2513.1,5.43348644]
[1747555334823,46.20188019,2513.2,2513.1,6.65829822]
[1747555335023,46.20188019,2513.2,2513.1,22.38629822]
[1747555335571,46.20188019,2513.2,2513.1,22.38529822]
[1747555335779,46.20188019,2513.2,2513.1,14.65829822]
[1747555335923,46.20188019,2513.2,2513.1,8.10303719]
[1747555336125,46.20188019,2513.2,2513.1,0.37803719]
[1747555338268,51.26947111,2513.2,2513.1,0.37803719]
[1747555338470,47.29048019,2513.2,2513.1,0.37803719]
[1747555338769,51.26947111,2513.2,2513.1,0.37803719]
[1747555340431,59.81947111,2513.2,2513.1,0.37803719]
[1747555340633,72.70747111,2513.2,2513.1,0.29347383]
[1747555341034,88.17547111,2513.2,2513.1,0.29347383]
[1747555341675,72.70747111,2513.2,2513.1,0.29347383]
[1747555341875,3.97962432,2512.8,2512.7,0.06764962]
[1747555342244,5.06814139,2512.9,2512.1,1.0763]
[1747555342445,7.742,2512.8,2512.3,3.98033042]
[1747555342642,11.72164484,2512.8,2512.3,4.88406139]
[1747555342843,46.20188019,2513.2,2512.5,3.9800995]
[1747555343074,3.97915396,2513.1,2512.4,1.0763]
[1747555343395,1.0886,2513.0,2512.3,0.90373097]
[1747555343696,1.0886,2513.0,2512.5,3.98000157]
[1747555343878,8.8306,2513.0,2512.6,3.97989869]
[1747555344044,8.8306,2513.0,2512.5,3.98002029]
[1747555344249,12.80991302,2513.0,2512.3,3.98037073]
[1747555344443,12.80991302,2513.0,2512.1,1.0763]
[1747555344444,8.8306,2513.0,2512.2,3.98051242]
[1747555344680,3.97997458,2512.6,2512.1,1.0763]
[1747555344876,3.98008792,2512.6,2512.0,3.98088526]
[1747555345076,3.98042768,2512.3,2511.9,1.55043123]
[1747555345289,3.98042768,2512.3,2511.9,0.47413123]
[1747555345663,1.0886,2512.4,2511.9,0.47413123]
[1747555346004,3.98048439,2512.3,2511.9,0.47413123]
[1747555346903,5.06892337,2512.4,2511.9,4.45515866]
[1747555347102,1.0886,2512.4,2511.9,4.45515866]
[1747555347407,3.98042586,2512.3,2511.9,0.47413123]
[1747555347550,3.98089171,2512.0,2511.9,0.47413123]
[1747555347956,1.0749,2512.0,2511.9,0.47413123]
[1747555348281,8.8179,2512.0,2511.9,0.47413123]
[1747555348680,12.79879171,2512.0,2511.9,0.47413123]
[1747555349102,3.98109136,2511.9,2511.6,0.49493265]
[1747555349501,12.79886549,2512.0,2511.6,0.49493265]
[1747555350015,12.85379435,2512.0,2511.6,0.49493265]
[1747555350174,5.0562672,2511.7,2511.6,0.49493265]
[1747555351417,12.8552672,2511.7,2511.6,0.49493265]
[1747555351793,7.799,2511.7,2511.6,0.49493265]
[1747555352189,3.98101857,2512.0,2511.6,0.49493265]
[1747555352391,7.799,2511.7,2511.6,0.49493265]
[1747555352588,7.799,2511.8,2511.6,0.49493265]
[1747555352794,7.8,2512.0,2511.6,0.94260056]
[1747555353080,7.8,2512.0,2511.7,3.9813531]
[1747555353282,7.8,2512.0,2511.6,0.49493265]
[1747555353499,7.8,2512.1,2511.7,5.03313885]
[1747555353717,7.8,2512.2,2511.8,3.98105131]
[1747555353920,4.97213472,2512.4,2511.9,3.98103986]
[1747555354131,7.8,2512.3,2511.8,3.981132]
[1747555354295,3.98066494,2512.2,2511.8,0.95092035]
[1747555354498,11.78066494,2512.2,2511.8,0.95092035]
[1747555354819,3.98066494,2512.2,2511.8,0.95092035]
[1747555355037,7.8,2512.2,2511.8,0.95092035]
[1747555355321,0.9918,2512.4,2511.8,0.95092035]
[1747555355519,0.9918,2512.4,2511.8,3.98115776]
[1747555355712,7.8,2512.3,2511.8,3.98115776]
[1747555356024,7.8,2512.3,2511.9,3.98100763]
[1747555356223,7.8,2512.3,2511.8,3.98112603]
[1747555356723,7.8,2512.3,2511.7,5.03321088]
[1747555356925,7.8,2512.3,2511.8,4.53393952]
[1747555357109,3.98064944,2512.2,2511.8,0.55281435]
[1747555357786,10.63945263,2512.3,2511.6,0.49493265]
[1747555357990,3.98114287,2511.9,2511.6,0.49493265]
[1747555358221,3.9811491,2511.9,2511.6,0.49493265]
[1747555358535,3.98122752,2511.8,2511.6,0.49493265]
[1747555358689,3.9813672,2511.7,2511.6,0.49493265]
[1747555358896,3.98128243,2511.8,2511.6,0.49493265]
[1747555359441,1.0893,2511.8,2511.6,0.49493265]
[1747555359746,3.92875263,2512.3,2511.6,0.49493265]
[1747555359908,8.0,2512.4,2511.7,1.0922]
[1747555359909,7.8,2512.1,2511.7,1.0922]
[1747555360238,7.8,2512.1,2511.9,3.98090844]
[1747555360438,7.8,2512.1,2511.9,4.88635267]
[1747555361139,3.98042951,2512.3,2511.9,0.90544423]
[1747555361342,7.8,2512.5,2512.0,1.0922]
[1747555361541,3.98028294,2512.4,2512.0,1.0922]
[1747555362339,3.98028294,2512.4,2511.9,3.98101621]
[1747555362559,11.78011527,2512.5,2511.9,4.8767612]
[1747555362560,11.7801836,2512.5,2511.9,4.8767612]
[1747555362743,11.7801836,2512.5,2512.0,3.98088598]
[1747555363332,7.8,2512.4,2511.9,0.89574499]
[1747555363648,7.8,2512.4,2512.1,3.9806406]
[1747555364340,3.97994948,2512.6,2512.1,3.9806406]
[1747555364507,7.8,2512.5,2512.1,3.9806406]
[1747555365327,7.8,2512.5,2512.2,4.97587334]
[1747555365523,7.8,2512.5,2512.2,0.9953]
[1747555366359,20.85597772,2512.8,2512.2,0.9953]
[1747555366360,5.06903566,2512.8,2512.3,3.98039327]
[1747555366769,17.91759053,2513.0,2512.4,3.98012061]
[1747555367070,17.91759053,2513.0,2512.6,3.97991913]
[1747555367071,7.8,2512.9,2512.6,3.97991913]
[1747555367233,7.8,2512.9,2512.4,4.97555792]
[1747555367440,7.8,2512.9,2512.5,3.98003754]
[1747555367962,12.894,2513.0,2512.6,3.97993213]